[Event "*** Qualifier 1: Titled Tuesday 3|2 Blitz"]
[Site "Chess.com"]
[Date "2017.04.04"]
[Round "5"]
[White "PaulfromSPb"]
[Black "ShimanovAlex"]
[Result "1/2-1/2"]
[WhiteElo "2546"]
[BlackElo "2621"]
[TimeControl "180+2"]
[EndTime "14:14:32 PDT"]
[Termination "Game drawn by agreement"]

1. d4 {[%clk 0:02:58.9]} 1... Nf6 {[%clk 0:02:57.9]} 2. Bg5 {[%clk 0:02:59.9]}
2... Ne4 {[%clk 0:02:53]} 3. Bf4 {[%clk 0:03:00.3]} 3... d5 {[%clk 0:02:54.1]}
4. Nd2 {[%clk 0:02:59.4]} 4... Bf5 {[%clk 0:02:53.4]} 5. Ngf3 {[%clk 0:03:00]}
5... e6 {[%clk 0:02:54]} 6. e3 {[%clk 0:03:01.1]} 6... Bd6 {[%clk 0:02:54.6]} 7.
Bxd6 {[%clk 0:02:55.8]} 7... Nxd6 {[%clk 0:02:54.5]} 8. Bd3 {[%clk 0:02:55.3]}
8... O-O {[%clk 0:02:53.8]} 9. O-O {[%clk 0:02:55.9]} 9... Nd7 {[%clk
0:02:52.7]} 10. Qe2 {[%clk 0:02:55.6]} 10... Be4 {[%clk 0:02:51.7]} 11. Bxe4
{[%clk 0:02:53.5]} 11... dxe4 {[%clk 0:02:51.6]} 12. Ne5 {[%clk 0:02:54.6]}
12... f6 {[%clk 0:02:47.5]} 13. Nxd7 {[%clk 0:02:44.9]} 13... Qxd7 {[%clk
0:02:49.4]} 14. c4 {[%clk 0:02:46.1]} 14... f5 {[%clk 0:02:49.7]} 15. c5 {[%clk
0:02:44.3]} 15... Nf7 {[%clk 0:02:40.2]} 16. Nc4 {[%clk 0:02:34.8]} 16... Qd5
{[%clk 0:02:40.5]} 17. b4 {[%clk 0:02:33.7]} 17... b5 {[%clk 0:02:16.8]} 18.
cxb6 {[%clk 0:02:09.3]} 18... axb6 {[%clk 0:02:14.9]} 19. a4 {[%clk 0:02:05.6]}
19... Ra7 {[%clk 0:02:05.5]} 20. a5 {[%clk 0:01:57.7]} 20... Rfa8 {[%clk
0:02:06.2]} 21. Rac1 {[%clk 0:01:55.3]} 21... b5 {[%clk 0:02:04.9]} 22. Nd2
{[%clk 0:01:44.4]} 22... c6 {[%clk 0:02:01.2]} 23. Rc5 {[%clk 0:01:42.6]} 23...
Qd6 {[%clk 0:02:01.3]} 24. Rfc1 {[%clk 0:01:43]} 24... Ra6 {[%clk 0:01:53.8]}
25. f3 {[%clk 0:01:32]} 25... exf3 {[%clk 0:01:49.4]} 26. Nxf3 {[%clk 0:01:33]}
26... Re8 {[%clk 0:00:55.8]} 27. Qc2 {[%clk 0:01:31.1]} 27... Kf8 {[%clk
0:00:46.1]} 28. Qc3 {[%clk 0:01:18.9]} 28... h6 {[%clk 0:00:32.2]} 29. h3 {[%clk
0:01:06.1]} 29... Re7 {[%clk 0:00:28.1]} 30. Ne5 {[%clk 0:01:02.2]} 30... Nxe5
{[%clk 0:00:28.3]} 31. dxe5 {[%clk 0:01:03.3]} 31... Qb8 {[%clk 0:00:25.7]} 32.
Rd1 {[%clk 0:01:00.8]} 32... Rc7 {[%clk 0:00:18.7]} 33. Rd6 {[%clk 0:00:57.1]}
33... Ke7 {[%clk 0:00:19.2]} 34. e4 {[%clk 0:00:46.3]} 34... f4 {[%clk
0:00:19.2]} 35. Qf3 {[%clk 0:00:38.8]} 35... Qf8 {[%clk 0:00:16.8]} 36. Rxb5
{[%clk 0:00:37.3]} 36... cxb5 {[%clk 0:00:16.7]} 37. Rxa6 {[%clk 0:00:38.5]}
37... g5 {[%clk 0:00:07.9]} 38. Rd6 {[%clk 0:00:36.5]} 38... Qg7 {[%clk
0:00:08.1]} 39. Rd1 {[%clk 0:00:24.5]} 39... Qxe5 {[%clk 0:00:09.2]} 40. Qd3
{[%clk 0:00:20.6]} 40... Kf7 {[%clk 0:00:09]} 41. Qd8 {[%clk 0:00:21.4]} 41...
Re7 {[%clk 0:00:10]} 42. Rd7 {[%clk 0:00:20.5]} 42... Rxd7 {[%clk 0:00:10.7]}
43. Qxd7+ {[%clk 0:00:21.6]} 43... Kf6 {[%clk 0:00:12.2]} 44. Qd8+ {[%clk
0:00:21.9]} 44... Kf7 {[%clk 0:00:13.3]} 45. Qd7+ {[%clk 0:00:22.9]} 45... Kf6
{[%clk 0:00:14.6]} 46. Qd3 {[%clk 0:00:22.2]} 46... Qa1+ {[%clk 0:00:14.3]} 47.
Kh2 {[%clk 0:00:23.3]} 47... Ke5 {[%clk 0:00:14.9]} 48. Qxb5+ {[%clk 0:00:23.4]}
48... Kxe4 {[%clk 0:00:14.9]} 49. a6 {[%clk 0:00:24.8]} 49... Qa3 {[%clk
0:00:14.1]} 50. Qc6+ {[%clk 0:00:25]} 50... Ke5 {[%clk 0:00:15]} 51. Qf3 {[%clk
0:00:24.3]} 51... Qxa6 {[%clk 0:00:15.2]} 52. Qc3+ {[%clk 0:00:24.8]} 52... Kd5
{[%clk 0:00:15.8]} 53. Qc5+ {[%clk 0:00:25.1]} 53... Ke4 {[%clk 0:00:16.9]} 54.
b5 {[%clk 0:00:26.5]} 54... Qa2 {[%clk 0:00:12.6]} 55. b6 {[%clk 0:00:26.3]}
55... Qb3 {[%clk 0:00:12.7]} 56. Qc6+ {[%clk 0:00:24.9]} 56... Ke5 {[%clk
0:00:13.3]} 57. Qc5+ {[%clk 0:00:22.9]} 57... Kf6 {[%clk 0:00:11.9]} 58. Qd4+
{[%clk 0:00:22.6]} 58... Kf5 {[%clk 0:00:11.1]} 59. Qc5+ {[%clk 0:00:21.6]}
59... e5 {[%clk 0:00:11.5]} 60. Qc8+ {[%clk 0:00:21]} 60... Ke4 {[%clk
0:00:10.2]} 61. Qc6+ {[%clk 0:00:18.3]} 61... Kf5 {[%clk 0:00:11.3]} 62. Qd7+
{[%clk 0:00:18.4]} 62... Kf6 {[%clk 0:00:10.8]} 63. Qd6+ {[%clk 0:00:18.8]}
63... Kf5 {[%clk 0:00:11.9]} 64. Qd7+ {[%clk 0:00:20]} 64... Kf6 {[%clk
0:00:12.6]} 65. Qc6+ {[%clk 0:00:19.9]} 65... Kf5 {[%clk 0:00:11.8]} 66. b7
{[%clk 0:00:19.7]} 66... Qg3+ {[%clk 0:00:12.2]} 67. Kh1 {[%clk 0:00:20.9]}
1/2-1/2

[Event "*** Qualifier 1: Titled Tuesday 3|2 Blitz"]
[Site "Chess.com"]
[Date "2017.04.04"]
[Round "5"]
[White "rubhani"]
[Black "platy3"]
[Result "0-1"]
[WhiteElo "2412"]
[BlackElo "2620"]
[TimeControl "180+2"]
[EndTime "14:14:32 PDT"]
[Termination "platy3 won by resignation"]

1. e4 {[%clk 0:03:01]} 1... c5 {[%clk 0:03:00.3]} 2. Nf3 {[%clk 0:03:02]} 2...
Nc6 {[%clk 0:03:01.8]} 3. d4 {[%clk 0:03:02.9]} 3... cxd4 {[%clk 0:03:03.4]} 4.
Nxd4 {[%clk 0:03:04.4]} 4... Qb6 {[%clk 0:03:04.9]} 5. Nb3 {[%clk 0:03:03.8]}
5... Nf6 {[%clk 0:03:06.2]} 6. Be3 {[%clk 0:03:03.7]} 6... Qc7 {[%clk
0:03:06.9]} 7. Nc3 {[%clk 0:03:02.9]} 7... e6 {[%clk 0:03:08.2]} 8. Bd3 {[%clk
0:03:03.1]} 8... a6 {[%clk 0:03:08]} 9. O-O {[%clk 0:03:03.7]} 9... Be7 {[%clk
0:03:08.7]} 10. a4 {[%clk 0:03:04]} 10... b6 {[%clk 0:03:04.2]} 11. f4 {[%clk
0:03:02.9]} 11... d6 {[%clk 0:03:04]} 12. Qe1 {[%clk 0:03:03.1]} 12... h5 {[%clk
0:03:02.4]} 13. h3 {[%clk 0:03:00.5]} 13... h4 {[%clk 0:03:02.1]} 14. Nd4 {[%clk
0:02:54.5]} 14... Bb7 {[%clk 0:03:00.2]} 15. Qf2 {[%clk 0:02:53.1]} 15... Nd7
{[%clk 0:02:52.3]} 16. Rae1 {[%clk 0:02:28.9]} 16... Bf6 {[%clk 0:02:48.2]} 17.
Nxc6 {[%clk 0:02:23.6]} 17... Bxc6 {[%clk 0:02:48.6]} 18. Bd4 {[%clk 0:02:18.1]}
18... Bxd4 {[%clk 0:02:29.4]} 19. Qxd4 {[%clk 0:02:18.6]} 19... Kf8 {[%clk
0:02:30.6]} 20. Kh1 {[%clk 0:02:18.5]} 20... e5 {[%clk 0:02:01.5]} 21. fxe5
{[%clk 0:02:08]} 21... Nxe5 {[%clk 0:02:02.5]} 22. Bc4 {[%clk 0:01:53.2]} 22...
Be8 {[%clk 0:01:43.1]} 23. Bb3 {[%clk 0:01:49.2]} 23... Qc5 {[%clk 0:01:40.8]}
24. Qd2 {[%clk 0:01:48.6]} 24... Rh6 {[%clk 0:01:27.5]} 25. Nd5 {[%clk 0:01:48]}
25... Ra7 {[%clk 0:01:11.3]} 26. Ne3 {[%clk 0:01:43.3]} 26... Bd7 {[%clk
0:01:04.2]} 27. Bd5 {[%clk 0:01:26.6]} 27... Rc7 {[%clk 0:01:01.8]} 28. c3
{[%clk 0:01:27.5]} 28... Rg6 {[%clk 0:00:39]} 29. c4 {[%clk 0:01:08]} 29... a5
{[%clk 0:00:38.6]} 30. Nf5 {[%clk 0:01:08.8]} 30... Qb4 {[%clk 0:00:36.2]} 31.
Qf4 {[%clk 0:01:04.1]} 31... Qxb2 {[%clk 0:00:33.6]} 32. Nxh4 {[%clk 0:01:04.8]}
32... Rf6 {[%clk 0:00:30.8]} 33. Qg5 {[%clk 0:01:05.3]} 33... Nd3 {[%clk
0:00:29.8]} 34. Rxf6 {[%clk 0:00:56.8]} 34... Qxf6 {[%clk 0:00:31.7]} 35. Qxf6
{[%clk 0:00:47.6]} 35... gxf6 {[%clk 0:00:33.6]} 36. Rb1 {[%clk 0:00:46.7]}
36... Nb4 {[%clk 0:00:34.1]} 37. Nf5 {[%clk 0:00:44.8]} 37... Bxa4 {[%clk
0:00:26.3]} 38. Nxd6 {[%clk 0:00:43.8]} 38... Bc2 {[%clk 0:00:27.6]} 39. Rf1
{[%clk 0:00:42.8]} 39... a4 {[%clk 0:00:21.6]} 40. Nb5 {[%clk 0:00:43.2]} 40...
Rc5 {[%clk 0:00:18.6]} 41. Rxf6 {[%clk 0:00:42.6]} 41... Nxd5 {[%clk 0:00:16]}
42. exd5 {[%clk 0:00:40.1]} 42... Rxc4 {[%clk 0:00:15.9]} 43. d6 {[%clk
0:00:34.2]} 43... Ke8 {[%clk 0:00:05.3]} 44. Na3 {[%clk 0:00:29.7]} 44... Rc3
{[%clk 0:00:05.7]} 45. Nxc2 {[%clk 0:00:30.1]} 45... Rxc2 {[%clk 0:00:07.3]} 46.
d7+ {[%clk 0:00:30.4]} 46... Kxd7 {[%clk 0:00:08.7]} 47. Rxb6 {[%clk 0:00:31.7]}
47... Rc6 {[%clk 0:00:09.1]} 48. Rb7+ {[%clk 0:00:31.8]} 48... Rc7 {[%clk
0:00:10.7]} 49. Rb1 {[%clk 0:00:31.5]} 49... Ra7 {[%clk 0:00:11.5]} 50. Kh2
{[%clk 0:00:30.7]} 50... Ke6 {[%clk 0:00:12.9]} 51. Kg3 {[%clk 0:00:29]} 51...
a3 {[%clk 0:00:14.3]} 52. Kh4 {[%clk 0:00:29.8]} 52... Kf5 {[%clk 0:00:15.2]}
53. g4+ {[%clk 0:00:30]} 53... Kg6 {[%clk 0:00:15.7]} 54. Ra1 {[%clk 0:00:29.7]}
54... a2 {[%clk 0:00:16.3]} 55. Kg3 {[%clk 0:00:30.8]} 55... Ra3+ {[%clk
0:00:17.5]} 56. Kg2 {[%clk 0:00:29]} 56... Kg5 {[%clk 0:00:18]} 57. Kh2 {[%clk
0:00:30.3]} 57... Kh4 {[%clk 0:00:18.3]} 58. Kg2 {[%clk 0:00:31.5]} 58... f6
{[%clk 0:00:19.9]} 59. Kh2 {[%clk 0:00:25.2]} 59... Rxh3+ {[%clk 0:00:20.3]} 60.
Kg2 {[%clk 0:00:26.4]} 60... Ra3 {[%clk 0:00:21.9]} 61. Kf2 {[%clk 0:00:27.3]}
61... Kxg4 {[%clk 0:00:22.9]} 62. Kg2 {[%clk 0:00:27.8]} 62... f5 {[%clk
0:00:24]} 63. Kf2 {[%clk 0:00:29.1]} 63... f4 {[%clk 0:00:25.4]} 64. Kg2 {[%clk
0:00:30.4]} 64... f3+ {[%clk 0:00:27]} 65. Kf2 {[%clk 0:00:31.8]} 65... Kf4
{[%clk 0:00:28.5]} 66. Kf1 {[%clk 0:00:33]} 66... Kg3 {[%clk 0:00:29.9]} 67. Kg1
{[%clk 0:00:34]} 67... Rb3 {[%clk 0:00:31.3]} 0-1

[Event "*** Qualifier 1: Titled Tuesday 3|2 Blitz"]
[Site "Chess.com"]
[Date "2017.04.04"]
[Round "5"]
[White "Robin-Side"]
[Black "Storne89"]
[Result "1-0"]
[WhiteElo "2401"]
[BlackElo "2519"]
[TimeControl "180+2"]
[EndTime "14:14:35 PDT"]
[Termination "Robin-Side won by resignation"]

1. d4 {[%clk 0:03:02]} 1... Nf6 {[%clk 0:03:00.3]} 2. c4 {[%clk 0:03:03.1]} 2...
e6 {[%clk 0:03:01.4]} 3. Nc3 {[%clk 0:03:04.3]} 3... Bb4 {[%clk 0:03:01.8]} 4.
e3 {[%clk 0:03:05.6]} 4... O-O {[%clk 0:03:01.9]} 5. Bd3 {[%clk 0:03:06.8]} 5...
d5 {[%clk 0:03:02.1]} 6. a3 {[%clk 0:03:07.8]} 6... Be7 {[%clk 0:02:52.7]} 7.
Nf3 {[%clk 0:03:07.4]} 7... b6 {[%clk 0:02:47.3]} 8. cxd5 {[%clk 0:03:08.5]}
8... exd5 {[%clk 0:02:47.4]} 9. O-O {[%clk 0:03:09.5]} 9... Bb7 {[%clk
0:02:47.9]} 10. b4 {[%clk 0:03:07.7]} 10... Nbd7 {[%clk 0:02:46.1]} 11. Bb2
{[%clk 0:03:03.9]} 11... a6 {[%clk 0:02:47]} 12. Qc2 {[%clk 0:02:58.8]} 12...
Bd6 {[%clk 0:02:47.3]} 13. Ne2 {[%clk 0:02:55.5]} 13... Re8 {[%clk 0:02:46.2]}
14. Ng3 {[%clk 0:02:48.1]} 14... g6 {[%clk 0:02:44.7]} 15. Rac1 {[%clk
0:02:44.4]} 15... Rc8 {[%clk 0:02:36.4]} 16. Qe2 {[%clk 0:02:39.1]} 16... Ra8
{[%clk 0:02:35]} 17. Qc2 {[%clk 0:02:39.7]} 17... a5 {[%clk 0:02:34.2]} 18. Ne5
{[%clk 0:02:18.6]} 18... axb4 {[%clk 0:02:27.7]} 19. axb4 {[%clk 0:02:19.8]}
19... Nf8 {[%clk 0:02:12.5]} 20. b5 {[%clk 0:02:13.5]} 20... Qe7 {[%clk
0:02:04.7]} 21. Ra1 {[%clk 0:02:05.2]} 21... h5 {[%clk 0:02:00.9]} 22. Ne2
{[%clk 0:01:46.7]} 22... h4 {[%clk 0:02:01.4]} 23. h3 {[%clk 0:01:48.2]} 23...
N6d7 {[%clk 0:01:48.2]} 24. f4 {[%clk 0:01:23.3]} 24... Nf6 {[%clk 0:01:48.7]}
25. Rxa8 {[%clk 0:01:18.7]} 25... Bxa8 {[%clk 0:01:49.5]} 26. Ra1 {[%clk
0:01:17.3]} 26... Nh5 {[%clk 0:01:33.9]} 27. Ra7 {[%clk 0:01:16]} 27... Rd8
{[%clk 0:00:47.9]} 28. Qa4 {[%clk 0:01:12.4]} 28... Qe8 {[%clk 0:00:44.8]} 29.
Bc1 {[%clk 0:01:01]} 29... Kg7 {[%clk 0:00:45.5]} 30. Bd2 {[%clk 0:01:00.8]}
30... f6 {[%clk 0:00:45.6]} 31. Nf3 {[%clk 0:01:00.6]} 31... f5 {[%clk
0:00:31.5]} 32. Ne5 {[%clk 0:00:54]} 32... Nf6 {[%clk 0:00:32.2]} 33. Kh1 {[%clk
0:00:45.8]} 33... Ne4 {[%clk 0:00:28.4]} 34. Bxe4 {[%clk 0:00:44.7]} 34... dxe4
{[%clk 0:00:30.3]} 35. Bc3 {[%clk 0:00:38]} 35... Bd5 {[%clk 0:00:28.6]} 36. Bb4
{[%clk 0:00:35.4]} 36... Ne6 {[%clk 0:00:29.6]} 37. Nc3 {[%clk 0:00:34.3]} 37...
Bxb4 {[%clk 0:00:18.3]} 38. Qxb4 {[%clk 0:00:36.2]} 38... Kh6 {[%clk 0:00:12.4]}
39. Ne2 {[%clk 0:00:29.8]} 39... g5 {[%clk 0:00:11.4]} 40. Qe1 {[%clk
0:00:28.6]} 40... Ra8 {[%clk 0:00:05.7]} 41. fxg5+ {[%clk 0:00:29.4]} 41... Kxg5
{[%clk 0:00:07]} 42. Rxa8 {[%clk 0:00:27.3]} 42... Bxa8 {[%clk 0:00:08.9]} 43.
Qf2 {[%clk 0:00:28.7]} 43... Qh5 {[%clk 0:00:09.6]} 44. Nf4 {[%clk 0:00:29.4]}
44... Qd1+ {[%clk 0:00:10]} 45. Kh2 {[%clk 0:00:30.4]} 45... Ng7 {[%clk
0:00:10.7]} 46. Nf7+ {[%clk 0:00:26.1]} 46... Kf6 {[%clk 0:00:11.6]} 47. Nh6
{[%clk 0:00:23.1]} 47... Kg5 {[%clk 0:00:10]} 48. Nf7+ {[%clk 0:00:21.1]} 48...
Kf6 {[%clk 0:00:11.4]} 49. Nh6 {[%clk 0:00:20.7]} 49... Kg5 {[%clk 0:00:11.9]}
50. Nf7+ {[%clk 0:00:21]} 50... Kf6 {[%clk 0:00:13.4]} 51. Nd8 {[%clk
0:00:21.5]} 51... Kg5 {[%clk 0:00:13.4]} 52. Nde6+ {[%clk 0:00:22.8]} 52... Nxe6
{[%clk 0:00:14.6]} 53. Nxe6+ {[%clk 0:00:24.7]} 53... Kf6 {[%clk 0:00:16.3]} 54.
Nf4 {[%clk 0:00:24.9]} 54... Kg5 {[%clk 0:00:17.6]} 55. d5 {[%clk 0:00:22.6]}
55... Bxd5 {[%clk 0:00:16.5]} 56. Qb2 {[%clk 0:00:23.7]} 56... Kh6 {[%clk
0:00:03.1]} 57. Qf6+ {[%clk 0:00:24.3]} 57... Kh7 {[%clk 0:00:03.6]} 58. Qxf5+
{[%clk 0:00:21.6]} 58... Kg7 {[%clk 0:00:03.4]} 59. Qxd5 {[%clk 0:00:21.7]}
59... Qe1 {[%clk 0:00:04.8]} 60. Qe5+ {[%clk 0:00:21.6]} 60... Kf8 {[%clk
0:00:05.4]} 61. Ng6+ {[%clk 0:00:20.8]} 61... Kf7 {[%clk 0:00:05.8]} 62. Qf5+
{[%clk 0:00:20.8]} 62... Kg7 {[%clk 0:00:07.2]} 63. Qg5 {[%clk 0:00:20.8]} 63...
Qg3+ {[%clk 0:00:06.6]} 64. Qxg3 {[%clk 0:00:21.3]} 64... hxg3+ {[%clk
0:00:08.5]} 65. Kxg3 {[%clk 0:00:23.2]} 65... Kxg6 {[%clk 0:00:10.4]} 66. Kf4
{[%clk 0:00:24.8]} 1-0

[Event "*** Qualifier 1: Titled Tuesday 3|2 Blitz"]
[Site "Chess.com"]
[Date "2017.04.04"]
[Round "5"]
[White "OparinGrigoriy"]
[Black "SmoothAsAHedgehog"]
[Result "0-1"]
[WhiteElo "2574"]
[BlackElo "2539"]
[TimeControl "180+2"]
[EndTime "14:14:54 PDT"]
[Termination "SmoothAsAHedgehog won by resignation"]

1. e4 {[%clk 0:03:02]} 1... e5 {[%clk 0:02:59.8]} 2. Nf3 {[%clk 0:03:02.7]} 2...
Nc6 {[%clk 0:03:00.8]} 3. Bc4 {[%clk 0:03:04.1]} 3... Bc5 {[%clk 0:03:01.3]} 4.
c3 {[%clk 0:03:03.4]} 4... Nf6 {[%clk 0:03:02.8]} 5. d3 {[%clk 0:03:05]} 5...
O-O {[%clk 0:03:02.3]} 6. Nbd2 {[%clk 0:03:03.1]} 6... d6 {[%clk 0:03:02.9]} 7.
O-O {[%clk 0:03:01.1]} 7... Bb6 {[%clk 0:03:04]} 8. a4 {[%clk 0:03:02.3]} 8...
a6 {[%clk 0:03:04.3]} 9. h3 {[%clk 0:03:03.8]} 9... Ne7 {[%clk 0:03:05.5]} 10.
Re1 {[%clk 0:03:04.4]} 10... Ng6 {[%clk 0:03:07.1]} 11. d4 {[%clk 0:03:05.8]}
11... h6 {[%clk 0:03:07.7]} 12. Bb3 {[%clk 0:03:06.1]} 12... Nh7 {[%clk
0:03:08]} 13. Bc2 {[%clk 0:03:04.2]} 13... Qf6 {[%clk 0:03:09.3]} 14. Nc4 {[%clk
0:03:03.3]} 14... Ba7 {[%clk 0:03:08.7]} 15. Ne3 {[%clk 0:03:04.8]} 15... c6
{[%clk 0:03:08.7]} 16. Nh2 {[%clk 0:03:03.4]} 16... Ng5 {[%clk 0:03:05.9]} 17.
Nhg4 {[%clk 0:03:02]} 17... Bxg4 {[%clk 0:02:52.5]} 18. Nxg4 {[%clk 0:03:01.6]}
18... Qe7 {[%clk 0:02:54.2]} 19. g3 {[%clk 0:02:57.7]} 19... Nxh3+ {[%clk
0:02:49.1]} 20. Kg2 {[%clk 0:02:57.8]} 20... Ng5 {[%clk 0:02:50.8]} 21. Rh1
{[%clk 0:02:41.9]} 21... Ne6 {[%clk 0:02:47.9]} 22. d5 {[%clk 0:02:29.4]} 22...
cxd5 {[%clk 0:02:48]} 23. exd5 {[%clk 0:02:31.3]} 23... Nc5 {[%clk 0:02:49.7]}
24. Bxh6 {[%clk 0:02:29.1]} 24... f5 {[%clk 0:02:46]} 25. Bxg7 {[%clk
0:02:28.7]} 25... Kxg7 {[%clk 0:02:38.1]} 26. Ne3 {[%clk 0:02:18.1]} 26... e4
{[%clk 0:02:37]} 27. Qh5 {[%clk 0:02:18.8]} 27... Qe5 {[%clk 0:02:23.3]} 28.
Qh7+ {[%clk 0:02:12.4]} 28... Kf6 {[%clk 0:02:21.7]} 29. Rh6 {[%clk 0:01:37.2]}
29... Rg8 {[%clk 0:02:22.7]} 30. Rah1 {[%clk 0:00:59]} 30... Rg7 {[%clk
0:02:23.3]} 31. Rxg6+ {[%clk 0:00:57.1]} 31... Rxg6 {[%clk 0:02:24.4]} 32. Rh5
{[%clk 0:00:48.7]} 32... Rag8 {[%clk 0:01:53.6]} 33. Rxf5+ {[%clk 0:00:41.7]}
33... Qxf5 {[%clk 0:01:54.8]} 34. Nxf5 {[%clk 0:00:43]} 34... Kxf5 {[%clk
0:01:56.7]} 35. b4 {[%clk 0:00:44]} 35... Nd3 {[%clk 0:01:51.1]} 36. Bxd3 {[%clk
0:00:29.4]} 36... exd3 {[%clk 0:01:52.1]} 37. Qh5+ {[%clk 0:00:30.6]} 37... Ke4
{[%clk 0:01:10.2]} 38. Qf3+ {[%clk 0:00:27.1]} 38... Ke5 {[%clk 0:01:11.5]} 39.
Qxd3 {[%clk 0:00:21.2]} 39... Kf6 {[%clk 0:01:09.1]} 40. Qc4 {[%clk 0:00:19.3]}
40... R8g7 {[%clk 0:01:02.1]} 41. Qc8 {[%clk 0:00:18.6]} 41... Ke5 {[%clk
0:00:59.4]} 42. c4 {[%clk 0:00:19.4]} 42... Kd4 {[%clk 0:00:58.7]} 43. a5 {[%clk
0:00:19.2]} 43... Kc3 {[%clk 0:00:58]} 44. b5 {[%clk 0:00:20.4]} 44... Bc5
{[%clk 0:00:50.1]} 45. bxa6 {[%clk 0:00:17.5]} 45... bxa6 {[%clk 0:00:52]} 46.
Qf5 {[%clk 0:00:18.7]} 46... Kxc4 {[%clk 0:00:49.4]} 47. Qb1 {[%clk 0:00:18.1]}
47... Kxd5 {[%clk 0:00:48.5]} 48. Qd3+ {[%clk 0:00:19.1]} 48... Kc6 {[%clk
0:00:49.8]} 49. Qxa6+ {[%clk 0:00:20.4]} 49... Kd5 {[%clk 0:00:50.9]} 50. Qd3+
{[%clk 0:00:20.8]} 50... Kc6 {[%clk 0:00:52.4]} 51. Qa6+ {[%clk 0:00:22.2]}
51... Kc7 {[%clk 0:00:51.2]} 52. Qc4 {[%clk 0:00:17.5]} 52... Rf6 {[%clk
0:00:50.9]} 53. Qc3 {[%clk 0:00:08.8]} 53... Rxf2+ {[%clk 0:00:47.5]} 54. Kh3
{[%clk 0:00:10.3]} 54... Rh7+ {[%clk 0:00:36.9]} 55. Kg4 {[%clk 0:00:11.7]}
55... Rff7 {[%clk 0:00:36.6]} 56. Qb3 {[%clk 0:00:11.1]} 56... Rhg7+ {[%clk
0:00:37]} 57. Kh5 {[%clk 0:00:12.1]} 57... Rf5+ {[%clk 0:00:35.5]} 58. Kh4
{[%clk 0:00:12.1]} 58... Rfg5 {[%clk 0:00:35.3]} 59. a6 {[%clk 0:00:12.2]} 59...
Rg4+ {[%clk 0:00:34.1]} 60. Kh5 {[%clk 0:00:13.3]} 60... Kc6 {[%clk 0:00:26.5]}
61. Qf3+ {[%clk 0:00:10.5]} 61... Kb6 {[%clk 0:00:26.4]} 62. Qb3+ {[%clk
0:00:05.1]} 62... Kxa6 {[%clk 0:00:24.5]} 63. Qa2+ {[%clk 0:00:06.6]} 63... Kb6
{[%clk 0:00:25.4]} 64. Qb2+ {[%clk 0:00:07.6]} 64... Kc7 {[%clk 0:00:25.9]} 65.
Qc3 {[%clk 0:00:08.1]} 65... Rxg3 {[%clk 0:00:24.7]} 66. Qa5+ {[%clk 0:00:09.4]}
66... Bb6 {[%clk 0:00:25.6]} 67. Qf5 {[%clk 0:00:10.2]} 67... R3g5+ {[%clk
0:00:24.9]} 0-1

[Event "*** Qualifier 1: Titled Tuesday 3|2 Blitz"]
[Site "Chess.com"]
[Date "2017.04.04"]
[Round "6"]
[White "FearlessKing64"]
[Black "kharov2001"]
[Result "1-0"]
[WhiteElo "2121"]
[BlackElo "1841"]
[TimeControl "180+2"]
[EndTime "14:18:40 PDT"]
[Termination "FearlessKing64 won by resignation"]

1. e4 {[%clk 0:03:02]} 1... c5 {[%clk 0:02:55.2]} 2. Nf3 {[%clk 0:03:01.9]} 2...
Nc6 {[%clk 0:02:54.1]} 3. d4 {[%clk 0:03:03.1]} 3... cxd4 {[%clk 0:02:55.2]} 4.
Nxd4 {[%clk 0:03:05]} 4... g6 {[%clk 0:02:56.5]} 5. c4 {[%clk 0:03:05.7]} 5...
Bg7 {[%clk 0:02:57.3]} 6. Be3 {[%clk 0:03:07.3]} 6... Nf6 {[%clk 0:02:58.2]} 7.
Nc3 {[%clk 0:03:08.9]} 7... d6 {[%clk 0:02:58]} 8. Be2 {[%clk 0:03:09.8]} 8...
O-O {[%clk 0:02:58.8]} 9. O-O {[%clk 0:03:10.9]} 9... Bd7 {[%clk 0:03:00]} 10.
f3 {[%clk 0:03:07.8]} 10... Nxd4 {[%clk 0:02:58]} 11. Bxd4 {[%clk 0:03:08.7]}
11... a5 {[%clk 0:02:56.9]} 12. b3 {[%clk 0:03:08.8]} 12... Bc6 {[%clk
0:02:57.6]} 13. Rc1 {[%clk 0:03:09.2]} 13... Nd7 {[%clk 0:02:56.8]} 14. Be3
{[%clk 0:03:09.6]} 14... Nc5 {[%clk 0:02:57.8]} 15. Qd2 {[%clk 0:03:10]} 15...
Qb6 {[%clk 0:02:57.1]} 16. Nb5 {[%clk 0:03:10.9]} 16... Rfc8 {[%clk 0:02:56.8]}
17. Kh1 {[%clk 0:03:06.9]} 17... Qd8 {[%clk 0:02:55.3]} 18. Nd4 {[%clk
0:03:06.5]} 18... Bd7 {[%clk 0:02:52]} 19. Rfd1 {[%clk 0:02:58.7]} 19... Qf8
{[%clk 0:02:46.1]} 20. Bd3 {[%clk 0:02:51.6]} 20... Bh6 {[%clk 0:02:44.3]} 21.
Bxh6 {[%clk 0:02:40.6]} 1-0

[Event "*** Qualifier 1: Titled Tuesday 3|2 Blitz"]
[Site "Chess.com"]
[Date "2017.04.04"]
[Round "6"]
[White "VladDobrov"]
[Black "Alex_Molchanov"]
[Result "0-1"]
[WhiteElo "2514"]
[BlackElo "2376"]
[TimeControl "180+2"]
[EndTime "14:20:08 PDT"]
[Termination "Alex_Molchanov won by checkmate"]

1. d4 {[%clk 0:03:02]} 1... e6 {[%clk 0:03:00.8]} 2. c4 {[%clk 0:03:02.4]} 2...
Nf6 {[%clk 0:03:01.6]} 3. Nf3 {[%clk 0:03:03]} 3... b6 {[%clk 0:03:02.6]} 4. Nc3
{[%clk 0:03:03.8]} 4... Bb4 {[%clk 0:03:02.4]} 5. Qc2 {[%clk 0:03:04.4]} 5...
Bb7 {[%clk 0:03:03.4]} 6. a3 {[%clk 0:03:05.3]} 6... Bxc3+ {[%clk 0:03:01.5]} 7.
Qxc3 {[%clk 0:03:07.2]} 7... a5 {[%clk 0:03:02.5]} 8. b3 {[%clk 0:03:06.9]} 8...
d6 {[%clk 0:03:00.9]} 9. e3 {[%clk 0:03:07.9]} 9... Nbd7 {[%clk 0:03:00.2]} 10.
Be2 {[%clk 0:03:09]} 10... Qe7 {[%clk 0:02:58.9]} 11. O-O {[%clk 0:03:09.5]}
11... Ne4 {[%clk 0:02:59.6]} 12. Qe1 {[%clk 0:03:09.7]} 12... f5 {[%clk
0:03:00.6]} 13. Nd2 {[%clk 0:03:10.5]} 13... O-O {[%clk 0:02:42.4]} 14. f3
{[%clk 0:03:11]} 14... Nef6 {[%clk 0:02:41.5]} 15. Bb2 {[%clk 0:03:10.6]} 15...
e5 {[%clk 0:02:40.3]} 16. d5 {[%clk 0:03:10.8]} 16... g5 {[%clk 0:02:33.5]} 17.
Bd3 {[%clk 0:03:09]} 17... f4 {[%clk 0:02:30.1]} 18. exf4 {[%clk 0:02:45.5]}
18... gxf4 {[%clk 0:02:30.5]} 19. Qh4 {[%clk 0:02:46.4]} 19... Nc5 {[%clk
0:02:20.4]} 20. Bc2 {[%clk 0:02:46.2]} 20... Rf7 {[%clk 0:01:45.3]} 21. Kh1
{[%clk 0:02:46]} 21... Nxd5 {[%clk 0:01:41.9]} 22. cxd5 {[%clk 0:02:46.1]} 22...
Qxh4 {[%clk 0:01:42.3]} 23. b4 {[%clk 0:02:33.5]} 23... Nd7 {[%clk 0:01:41.1]}
24. g3 {[%clk 0:02:28.3]} 24... fxg3 {[%clk 0:01:41.3]} 25. Rg1 {[%clk
0:02:29.4]} 25... Qxh2# {[%clk 0:01:41.5]} 0-1